[Event "DVM U20 2019"]
[Site "Braunschweig"]
[Date "2019.12.29"]
[Round "5"]
[White "Triantafillidis, Simeon"]
[Black "Wu, Leon"]
[Result "1-0"]
[ECO "C47"]
[WhiteElo "1931"]
[BlackElo "2019"]
[Annotator "NA"]
[PlyCount "115"]
[EventDate "2019.12.27"]
[EventType "team-tourn"]
[EventRounds "7"]
[EventCountry "GER"]
[SourceTitle "playchess.com"]
[Source "ChessBase"]
[SourceQuality "1"]
[WhiteTeam "SF HN-Biberach"]
[BlackTeam "OSG Baden-Baden"]
[TimeControl "40/5400+30:1800+30"]

1. e4 {[%emt 0:00:00]} e5 {[%emt 0:00:00]} 2. Nf3 {[%emt 0:00:00]} Nc6 {[%emt 0:00:00]} 3. Nc3 {[%emt 0:00:00]} Nf6 {[%emt 0:00:00]} 4. d4 {[%emt 0:00:00] unterminated} exd4 {[%emt 0:13:58]} 5. Nxd4 {[%emt 0:00:03] unterminated} Bb4 {[%emt 0:03:53]} 6. Nxc6 {[%emt 0:00:10] unterminated} bxc6 $11 {[%emt 0:11:33]} 7. Bd3 {[%emt 0:00:15]} O-O {[%emt 0:01:58]} 8. O-O {[%emt 0:00:11]} Re8 {[%emt 0:08:53]} 9. Qf3 {[%emt 0:09:04]} d5 {[%emt 0:06:23]} 10. exd5 {[%emt 0:03:23]} Nxd5 {[%emt 0:03:39]} 11. Ne4 {[%emt 0:03:33]} h6 {[%emt 0:02:05]} 12. c4 {[%emt 0:07:55]} Nb6 {[%emt 0:08:53]} 13. b3 {[%emt 0:12:58]} Nd7 {[%emt 0:02:35]} 14. Bb2 {[%emt 0:02:16]} Ne5 {[%emt 0:04:02]} 15. Qg3 {[%emt 0:03:34]} f6 {[%emt 0:06:19]} 16. Rad1 {[%emt 0:02:07]} Kh8 {[%emt 0:00:38]} 17. Bb1 {[%emt 0:04:55]} Qe7 {[%emt 0:02:07]} 18. f4 {[%emt 0:01:49]} Nd7 {[%emt 0:01:08]} 19. a3 {[%emt 0:08:00]} Bxa3 {[%emt 0:09:36]} 20. Bxa3 {[%emt 0:00:12]} Qxa3 {[%emt 0:00:03]} 21. Qg6 {[%emt 0:00:14]} Rxe4 {[%emt 0:08:25]} 22. Qxe4 {[%emt 0:00:38]} Qc5+ {[%emt 0:02:00]} 23. Kh1 {[%emt 0:00:08]} Nf8 {[%emt 0:00:38]} 24. Rd8 {[%emt 0:00:22]} Bf5 {[%emt 0:00:32]} 25. Rxf8+ {[%emt 0:00:25]} Rxf8 {[%emt 0:00:55]} 26. Qxf5 {[%emt 0:00:10]} Qxf5 {[%emt 0:00:29]} 27. Bxf5 {[%emt 0:00:02]} Rb8 {[%emt 0:00:49]} 28. Rd1 {[%emt 0:02:20]} g6 {[%emt 0:00:23]} 29. Bxg6 {[%emt 0:00:34]} Rxb3 {[%emt 0:00:07]} 30. Kg1 {[%emt 0:00:36]} Rc3 {[%emt 0:00:05]} 31. Bf7 {[%emt 0:00:27]} a5 {[%emt 0:00:19]} 32. Ra1 {[%emt 0:00:09]} Kg7 {[%emt 0:00:05]} 33. Be6 {[%emt 0:00:05]} Re3 {[%emt 0:00:31]} 34. Bf5 {[%emt 0:00:44]} Rc3 {[%emt 0:00:21]} 35. Ra4 {[%emt 0:00:41]} Kf7 {[%emt 0:00:31]} 36. Be4 {[%emt 0:01:12]} Ke7 {[%emt 0:00:31]} 37. Bxc6 {[%emt 0:00:22]} Kd6 {[%emt 0:00:43]} 38. Bd5 {[%emt 0:00:13]} Kc5 {[%emt 0:00:18]} 39. Rxa5+ {[%emt 0:00:27]} Kd4 {[%emt 0:00:06]} 40. Kf2 {[%emt 0:00:10]} Rc2+ {[%emt 0:02:03]} 41. Kg3 {[%emt 0:30:18]} f5 {[%emt 0:30:04]} 42. Ra6 {[%emt 0:00:39]} Rc3+ {[%emt 0:00:35]} 43. Kh4 {[%emt 0:01:20]} Ke3 {[%emt 0:00:17]} 44. g3 {[%emt 0:00:26]} h5 {[%emt 0:01:04]} 45. Kxh5 {[%emt 0:00:48]} Rc2 {[%emt 0:00:05]} 46. Kg5 {[%emt 0:00:06]} Rxh2 {[%emt 0:00:05]} 47. Kxf5 {[%emt 0:00:25]} Rh5+ {[%emt 0:00:10]} 48. Kg4 {[%emt 0:00:13]} Rh7 {[%emt 0:00:07]} 49. Kg5 {[%emt 0:00:37]} Kd4 {[%emt 0:00:33]} 50. f5 {[%emt 0:00:32]} Rg7+ {[%emt 0:00:44]} 51. Rg6 {[%emt 0:00:05]} Rh7 {[%emt 0:00:02]} 52. f6 {[%emt 0:00:12]} c6 {[%emt 0:00:05]} 53. f7 {[%emt 0:00:16]} cxd5 {[%emt 0:00:14]} 54. f8=Q {[%emt 0:00:08]} dxc4 {[%emt 0:00:06]} 55. Qf4+ {[%emt 0:00:31]} Kc3 {[%emt 0:00:07]} 56. Qe3+ {[%emt 0:00:12]} Kc2 {[%emt 0:00:04]} 57. Rc6 {[%emt 0:00:12]} Rg7+ {[%emt 0:00:05]} 58. Kh6 {[%emt 0:00:10] normal} 1-0

[Event "DVM U20 2019"]
[Site "Braunschweig"]
[Date "2019.12.29"]
[Round "5"]
[White "Dornieden, Jonas"]
[Black "Vuckovic, Robert"]
[Result "1-0"]
[ECO "D37"]
[WhiteElo "1912"]
[BlackElo "1897"]
[Annotator "NA"]
[PlyCount "63"]
[EventDate "2019.12.27"]
[EventType "team-tourn"]
[EventRounds "7"]
[EventCountry "GER"]
[SourceTitle "playchess.com"]
[Source "ChessBase"]
[SourceQuality "1"]
[WhiteTeam "SK Lehrte 1919"]
[BlackTeam "SF Augsburg"]
[TimeControl "40/5400+30:1800+30"]

1. d4 {[%emt 0:00:00]} e6 {[%emt 0:00:00]} 2. c4 {[%emt 0:00:00]} Nf6 {[%emt 0:00:00]} 3. Nf3 {[%emt 0:00:00]} d5 {[%emt 0:00:08]} 4. Nc3 {[%emt 0:00:00]} Nbd7 {[%emt 0:03:35]} 5. cxd5 {[%emt 0:00:24]} exd5 6. Bg5 {[%emt 0:00:30]} c6 7. e3 {[%emt 0:00:30]} Qa5 8. Nd2 {[%emt 0:00:30]} Ne4 {[%emt 0:24:19]} 9. Ndxe4 {[%emt 0:16:02]} dxe4 {[%emt 0:00:08]} 10. Bf4 {[%emt 0:00:25]} Nf6 {[%emt 0:06:35]} 11. Bc4 {[%emt 0:10:25]} Nd5 {[%emt 0:14:37]} 12. Bxd5 {[%emt 0:03:45]} cxd5 {[%emt 0:00:07]} 13. O-O {[%emt 0:01:10]} Bd7 {[%emt 0:13:46]} 14. Qh5 {[%emt 0:03:02]} Be6 {[%emt 0:01:08]} 15. Nxe4 {[%emt 0:04:36]} Qb6 {[%emt 0:06:22]} 16. Ng5 {[%emt 0:08:24]} g6 {[%emt 0:00:29]} 17. Qf3 {[%emt 0:02:23]} Bg7 {[%emt 0:01:22]} 18. Nxe6 {[%emt 0:01:36]} fxe6 {[%emt 0:00:42]} 19. Bg3 {[%emt 0:09:12]} Rf8 {[%emt 0:00:52]} 20. Qe2 {[%emt 0:02:47]} Kf7 {[%emt 0:01:22]} 21. Rfc1 {[%emt 0:00:45]} Rac8 {[%emt 0:00:12]} 22. Qd2 {[%emt 0:05:30]} Kg8 {[%emt 0:00:55]} 23. Rc2 {[%emt 0:00:32]} Qa6 {[%emt 0:02:49]} 24. b3 {[%emt 0:03:26]} b6 {[%emt 0:00:22]} 25. Rac1 {[%emt 0:00:24]} Bf6 {[%emt 0:01:35]} 26. h4 Be7 {[%emt 0:02:42]} 27. Rc7 {[%emt 0:05:06]} Ba3 {[%emt 0:05:30]} 28. R1c6 {[%emt 0:02:22]} Rxc7 {[%emt 0:00:19]} 29. Rxc7 {[%emt 0:00:22]} Re8 {[%emt 0:02:25]} 30. Qc2 {[%emt 0:01:22]} Qb5 {[%emt 0:01:01] normal} 31. h5 {[%emt 0:01:07]} Re7 {[%emt 0:00:46] normal} 32. hxg6 {[%emt 0:02:11] normal} 1-0

[Event "DVM U20 2019"]
[Site "Braunschweig"]
[Date "2019.12.29"]
[Round "5"]
[White "Rauch, Sören"]
[Black "Schimnatkowski, Lukas"]
[Result "*"]
[ECO "A46"]
[WhiteElo "1901"]
[BlackElo "2157"]
[Annotator "NA"]
[PlyCount "73"]
[EventDate "2019.12.27"]
[EventType "team-tourn"]
[EventRounds "7"]
[EventCountry "GER"]
[SourceTitle "playchess.com"]
[Source "ChessBase"]
[SourceQuality "1"]
[WhiteTeam "SG Trier"]
[BlackTeam "SF Essen-Katernberg"]
[TimeControl "40/5400+30:1800+30"]

1. d4 {[%emt 0:00:00]} Nf6 {[%emt 0:00:00]} 2. Nf3 {[%emt 0:00:00]} e6 {[%emt 0:00:08]} 3. Bf4 {[%emt 0:00:00]} b5 {[%emt 0:00:11]} 4. e3 {[%emt 0:00:14]} a6 {[%emt 0:00:05]} 5. Be2 {[%emt 0:01:25]} Bb7 {[%emt 0:00:24]} 6. O-O {[%emt 0:00:20] A46: 1 d4 Nf6 2 Nf3 e6: Torre, London and Colle Systems} (6. Nbd2 c5 7. c3 Nc6 8. h3 d5 9. O-O Bd6 10. Bg5 cxd4 11. exd4 O-O 12. Re1 h6 13. Bxf6 Qxf6 {½-½ (67) Malczyk,R (2072)-Kosiorek,M (2233) Jastrzebia Gora 2019}) 6... c5 7. c4 $146 {[%emt 0:07:54]} ({Predecessor:} 7. c3 d5 8. Nbd2 Be7 9. Rc1 O-O 10. a4 Bc6 11. Ne5 Bd7 12. b3 bxa4 13. bxa4 Nc6 {½-½ (58) Stosic,S-Nesic,U Vrbas 2015}) 7... bxc4 {[%emt 0:23:37]} 8. Bxc4 {[%emt 0:00:32]} Be7 {[%emt 0:00:49]} 9. Nc3 {[%emt 0:01:55]} cxd4 {[%emt 0:05:11]} 10. exd4 {[%emt 0:04:35]} Bxf3 {[%emt 0:01:29]} 11. Qxf3 {[%emt 0:00:32]} d5 {[%emt 0:00:05]} 12. Bb3 {[%emt 0:06:15]} O-O {[%emt 0:00:54]} 13. Rac1 {[%emt 0:00:34]} Nc6 {[%emt 0:13:15]} 14. Rfd1 {[%emt 0:05:48]} Na5 {[%emt 0:05:53]} 15. Na4 {[%emt 0:09:09]} Nxb3 {[%emt 0:13:09]} 16. Qxb3 {[%emt 0:08:43]} Bd6 {[%emt 0:00:54]} 17. Bxd6 {[%emt 0:00:47]} Qxd6 {[%emt 0:00:06] unterminated} 18. Nc5 {[%emt 0:00:34] unterminated} Rfb8 {[%emt 0:08:46] unterminated} 19. Qc2 {[%emt 0:05:07]} h5 {[%emt 0:00:20] unterminated} 20. b3 {[%emt 0:02:29] unterminated} Ng4 {[%emt 0:03:21]} 21. g3 {[%emt 0:00:50]} a5 {[%emt 0:00:36] unterminated} 22. Qe2 {[%emt 0:04:32] unterminated} Rb4 {[%emt 0:03:49] unterminated} 23. Rc2 {[%emt 0:09:23] unterminated} Nf6 {[%emt 0:01:38] unterminated} 24. Kg2 {[%emt 0:06:19] unterminated} g6 {[%emt 0:01:19] unterminated} 25. f4 {unterminated} Rc8 {[%emt 0:04:40] unterminated} 26. Qd3 {[%emt 0:03:56]} Ng4 {[%emt 0:01:04] unterminated} 27. Rdc1 {[%emt 0:05:06] unterminated} Nh6 {[%emt 0:01:35] unterminated} 28. a3 $11 {[%emt 0:00:47] unterminated} Rbb8 {[%emt 0:02:08] unterminated} 29. Qd2 {[%emt 0:00:38]} Nf5 {[%emt 0:00:21] unterminated} 30. b4 {[%emt 0:00:58] unterminated} axb4 {[%emt 0:00:21]} 31. axb4 {[%emt 0:00:08] unterminated} Ra8 {unterminated} 32. Kf2 {[%emt 0:04:22] unterminated} Rcb8 {[%emt 0:00:46]} 33. Rb1 {[%emt 0:01:20] unterminated} Ra3 {[%emt 0:00:29] unterminated} 34. Rc3 {[%emt 0:00:23] unterminated} Rxc3 {[%emt 0:05:01]} 35. Qxc3 {[%emt 0:00:06]} h4 {[%emt 0:00:16] unterminated} 36. b5 {[%emt 0:02:03] unterminated} hxg3+ {[%emt 0:00:21]} 37. hxg3 {[%emt 0:00:05] unterminated} *

[Event "DVM U20 2019"]
[Site "Braunschweig"]
[Date "2019.12.29"]
[Round "5"]
[White "Jurga, Jonas Vincent"]
[Black "Eurich, Alexander"]
[Result "1-0"]
[ECO "B38"]
[WhiteElo "1896"]
[BlackElo "1741"]
[Annotator "NA"]
[PlyCount "53"]
[EventDate "2019.12.27"]
[EventType "team-tourn"]
[EventRounds "7"]
[EventCountry "GER"]
[SourceTitle "playchess.com"]
[Source "ChessBase"]
[SourceQuality "1"]
[WhiteTeam "OSG Baden-Baden"]
[BlackTeam "SF HN-Biberach"]
[TimeControl "40/5400+30:1800+30"]

1. e4 {[%emt 0:00:00]} c5 {[%emt 0:00:00]} 2. Nf3 {[%emt 0:00:00]} g6 {[%emt 0:00:00]} 3. c4 {[%emt 0:00:00]} Bg7 {[%emt 0:00:16]} 4. d4 {[%emt 0:00:00]} cxd4 {[%emt 0:00:31]} 5. Nxd4 {[%emt 0:00:01] unterminated} Nc6 {[%emt 0:00:12]} 6. Be3 $14 {[%emt 0:00:07]} d6 {[%emt 0:00:41]} 7. Nc3 {[%emt 0:00:12]} Nf6 {[%emt 0:00:36]} 8. Be2 {[%emt 0:00:10]} Bd7 {[%emt 0:00:21]} 9. O-O {[%emt 0:00:16]} O-O {[%emt 0:00:03]} 10. h3 {[%emt 0:00:13]} a6 {[%emt 0:04:53]} 11. Rc1 {[%emt 0:06:41]} Rb8 {[%emt 0:06:14]} 12. a4 {[%emt 0:00:49]} Qa5 {[%emt 0:08:11]} 13. f3 {[%emt 0:03:28]} Rfc8 {[%emt 0:02:21]} 14. b3 {[%emt 0:04:24]} Qe5 {[%emt 0:34:51]} 15. f4 {[%emt 0:05:17]} Qa5 {[%emt 0:00:34]} 16. Nf3 {[%emt 0:01:16]} Rd8 {[%emt 0:04:45]} 17. Nd5 {[%emt 0:01:20]} Nxd5 {[%emt 0:03:43]} 18. cxd5 {[%emt 0:03:02]} Nb4 {[%emt 0:01:06]} 19. Qe1 {[%emt 0:09:14]} b5 {[%emt 0:05:38]} 20. axb5 {[%emt 0:03:29]} Bxb5 {[%emt 0:00:16]} 21. Bxb5 {[%emt 0:00:22]} axb5 {[%emt 0:04:42]} 22. Qh4 {[%emt 0:01:29]} f6 {[%emt 0:03:02]} 23. Qg4 {[%emt 0:11:18]} Nd3 {[%emt 0:02:12]} 24. Qe6+ {[%emt 0:04:00]} Kf8 {[%emt 0:00:10] normal} 25. Ng5 {[%emt 0:03:29] normal} fxg5 {[%emt 0:01:35]} 26. fxg5+ {[%emt 0:00:07] normal} Ke8 {[%emt 0:02:24]} 27. Rf7 {[%emt 0:00:05] normal} 1-0

[Event "DVM U20 2019"]
[Site "Braunschweig"]
[Date "2019.12.29"]
[Round "5"]
[White "Freiherr von Hauff, Christopher"]
[Black "Verfuerth, Kevin"]
[Result "0-1"]
[ECO "B22"]
[WhiteElo "1868"]
[BlackElo "2038"]
[Annotator "NA"]
[PlyCount "86"]
[EventDate "2019.12.27"]
[EventType "team-tourn"]
[EventRounds "7"]
[EventCountry "GER"]
[SourceTitle "playchess.com"]
[Source "ChessBase"]
[SourceQuality "1"]
[WhiteTeam "SK Bebenhausen"]
[BlackTeam "SK Turm Kleve"]
[TimeControl "40/5400+30:1800+30"]

1. e4 {[%emt 0:00:00]} c5 {[%emt 0:00:00]} 2. c3 {[%emt 0:00:00]} d5 {[%emt 0:00:00]} 3. exd5 {[%emt 0:00:00]} Qxd5 {[%emt 0:00:00]} 4. d4 {[%emt 0:00:13]} e6 {[%emt 0:00:07]} 5. Nf3 {[%emt 0:01:33]} Nf6 {[%emt 0:00:08]} 6. Be3 {[%emt 0:02:42]} cxd4 {[%emt 0:02:04]} 7. cxd4 {[%emt 0:03:00]} Nc6 {[%emt 0:03:02]} 8. Nc3 {[%emt 0:00:56]} Qd8 {[%emt 0:01:18]} 9. Bd3 {[%emt 0:03:17]} Be7 {[%emt 0:02:08]} 10. O-O {[%emt 0:00:39]} O-O {[%emt 0:01:56]} 11. Rc1 {[%emt 0:02:51]} Nb4 {[%emt 0:02:43]} 12. Bb1 {[%emt 0:00:25]} Nbd5 {[%emt 0:00:43]} 13. Bg5 {[%emt 0:08:44]} Bd7 {[%emt 0:06:21]} 14. a3 {[%emt 0:05:53]} Nxc3 {[%emt 0:03:19]} 15. Rxc3 {[%emt 0:02:48]} Nd5 {[%emt 0:01:16]} 16. Bxe7 {[%emt 0:02:16]} Qxe7 {[%emt 0:00:12]} 17. Qd3 {[%emt 0:03:14]} g6 {[%emt 0:02:04]} 18. Rcc1 {[%emt 0:02:01]} a6 {[%emt 0:06:03]} 19. Rfe1 {[%emt 0:03:12]} Bb5 {[%emt 0:06:52]} 20. Qe4 {[%emt 0:01:36]} Rfd8 {[%emt 0:03:34]} 21. Ba2 {[%emt 0:02:29]} Qf6 {[%emt 0:02:33]} 22. Ne5 {[%emt 0:02:49]} Qf5 {[%emt 0:12:17]} 23. Qh4 {[%emt 0:11:36]} Qf4 {[%emt 0:11:09]} 24. Ng4 {[%emt 0:18:22]} h5 {[%emt 0:00:58]} 25. Bxd5 {[%emt 0:00:23]} Qxg4 {[%emt 0:00:31]} 26. Qxg4 {[%emt 0:01:14]} hxg4 {[%emt 0:00:02]} 27. Bxb7 {[%emt 0:01:11]} Rab8 {[%emt 0:05:20]} 28. Rc7 {[%emt 0:06:49]} Rxd4 {[%emt 0:00:46]} 29. Rec1 {[%emt 0:00:48]} Rbd8 {[%emt 0:01:10]} 30. Rc8 {[%emt 0:00:47]} Kg7 {[%emt 0:01:28]} 31. Rxd8 {[%emt 0:00:05]} Rxd8 {[%emt 0:00:07]} 32. g3 {[%emt 0:04:28]} Rd2 {[%emt 0:00:59]} 33. b4 {[%emt 0:01:26]} Ra2 {[%emt 0:00:36]} 34. Bc6 {[%emt 0:00:08]} Bxc6 {[%emt 0:00:43]} 35. Rxc6 {[%emt 0:00:04]} Rxa3 {[%emt 0:00:04]} 36. Kf1 {[%emt 0:01:36]} Ra2 {[%emt 0:01:30]} 37. Rc5 {[%emt 0:01:57]} Kf6 {[%emt 0:00:29]} 38. b5 {[%emt 0:01:26]} Ra5 {[%emt 0:01:11]} 39. Rc4 {[%emt 0:01:20]} axb5 {[%emt 0:00:03]} 40. Rxg4 {[%emt 0:00:12]} Ra4 {[%emt 0:00:06]} 41. f4 {[%emt 0:30:19]} Kg7 {[%emt 0:36:09]} 42. Rg5 {[%emt 0:03:33]} f5 {[%emt 0:00:33]} 43. h4 {[%emt 0:00:10] normal} b4 {[%emt 0:01:37] normal} 0-1

[Event "DVM U20 2019"]
[Site "Braunschweig"]
[Date "2019.12.29"]
[Round "5"]
[White "von Angern, Cedric"]
[Black "Liess, Alexander"]
[Result "0-1"]
[ECO "B92"]
[WhiteElo "1867"]
[BlackElo "1852"]
[Annotator "NA"]
[PlyCount "48"]
[EventDate "2019.12.27"]
[EventType "team-tourn"]
[EventRounds "7"]
[EventCountry "GER"]
[SourceTitle "playchess.com"]
[Source "ChessBase"]
[SourceQuality "1"]
[WhiteTeam "SG Aufbau Elbe Magdeburg"]
[BlackTeam "SC Bavaria Regensburg"]
[TimeControl "40/5400+30:1800+30"]

1. e4 {[%emt 0:00:00]} c5 {[%emt 0:00:00]} 2. Nf3 {[%emt 0:00:00]} d6 {[%emt 0:00:00]} 3. d4 {[%emt 0:00:00]} cxd4 {[%emt 0:00:00]} 4. Nxd4 {[%emt 0:00:00]} Nf6 {[%emt 0:00:19] unterminated} 5. Nc3 {[%emt 0:00:35]} a6 {[%emt 0:00:31]} 6. Be2 {[%emt 0:00:27]} e5 {[%emt 0:00:33]} 7. Nb3 {[%emt 0:00:15] unterminated} Be7 {[%emt 0:00:23] unterminated} 8. O-O {[%emt 0:01:03]} O-O {[%emt 0:00:30]} 9. Re1 {[%emt 0:00:55] unterminated} Be6 {[%emt 0:01:47] unterminated} 10. Bf1 {[%emt 0:01:28] unterminated} Nbd7 {[%emt 0:03:23] unterminated} 11. a4 {[%emt 0:04:50] unterminated} Qc7 {[%emt 0:10:05] unterminated} 12. a5 {[%emt 0:10:03] unterminated} Rac8 $11 {[%emt 0:10:50]} 13. Bd3 {[%emt 0:03:03]} Nc5 {[%emt 0:11:29]} 14. Nxc5 {[%emt 0:06:29]} dxc5 {[%emt 0:00:55]} 15. Bg5 {[%emt 0:08:20]} c4 {[%emt 0:06:58]} 16. Bf1 {[%emt 0:01:48]} Rfd8 {[%emt 0:03:23]} 17. Qf3 {[%emt 0:05:33]} Ne8 {[%emt 0:13:24]} 18. Bxe7 {[%emt 0:03:04]} Qxe7 {[%emt 0:00:09]} 19. Na4 {[%emt 0:00:30]} Rc6 {[%emt 0:11:47]} 20. c3 {[%emt 0:10:15]} Rd2 {[%emt 0:04:43]} 21. Red1 {[%emt 0:06:52]} Rxd1 {[%emt 0:01:01]} 22. Rxd1 {[%emt 0:01:38]} Qc7 {[%emt 0:00:25]} 23. Nb6 {[%emt 0:02:12]} Rc5 {[%emt 0:02:14]} 24. Ra1 {[%emt 0:14:29]} Nd6 {[%emt 0:01:53] normal} 0-1

[Event "DVM U20 2019"]
[Site "Braunschweig"]
[Date "2019.12.29"]
[Round "5"]
[White "Hennemann, Florian"]
[Black "Schamschurko, Andre"]
[Result "1-0"]
[ECO "B32"]
[WhiteElo "1865"]
[BlackElo "1868"]
[Annotator "NA"]
[PlyCount "62"]
[EventDate "2019.12.27"]
[EventType "team-tourn"]
[EventRounds "7"]
[EventCountry "GER"]
[SourceTitle "playchess.com"]
[Source "ChessBase"]
[SourceQuality "1"]
[WhiteTeam "Sges Bensheim"]
[BlackTeam "USV TU Dresden"]
[TimeControl "40/5400+30:1800+30"]

1. e4 {[%emt 0:00:00]} c5 {[%emt 0:00:00]} 2. Nf3 {[%emt 0:00:00]} Nc6 {[%emt 0:00:00]} 3. d4 {[%emt 0:00:00]} cxd4 {[%emt 0:00:00]} 4. Nxd4 {[%emt 0:00:00]} e5 {[%emt 0:00:00]} 5. Nb5 {[%emt 0:00:29]} d6 {[%emt 0:00:07]} 6. N1c3 {[%emt 0:01:08]} a6 {[%emt 0:00:26]} 7. Na3 {[%emt 0:00:04]} b5 {[%emt 0:01:21]} 8. Nd5 {[%emt 0:00:53]} Nge7 {[%emt 0:03:42]} 9. Bg5 {[%emt 0:08:56]} h6 {[%emt 0:00:05]} 10. Bh4 {[%emt 0:01:53]} Be6 {[%emt 0:09:01]} 11. c3 {[%emt 0:03:08]} Bxd5 {[%emt 0:19:26]} 12. exd5 {[%emt 0:00:59]} Nb8 {[%emt 0:01:01]} 13. Bxe7 {[%emt 0:05:29]} Bxe7 {[%emt 0:01:18]} 14. Bd3 {[%emt 0:00:46]} O-O {[%emt 0:00:30]} 15. Qh5 {[%emt 0:03:11]} Nd7 {[%emt 0:03:22]} 16. Nc2 {[%emt 0:06:37]} Qe8 {[%emt 0:04:41]} 17. Ne3 {[%emt 0:04:04]} Nc5 {[%emt 0:05:31]} 18. Bc2 {[%emt 0:00:56]} Bg5 {[%emt 0:00:40]} 19. Nf5 {[%emt 0:02:23]} e4 {[%emt 0:04:15]} 20. h4 {[%emt 0:05:22]} Qe5 {[%emt 0:06:52]} 21. hxg5 {[%emt 0:06:15]} Qxf5 {[%emt 0:00:42]} 22. gxh6 {[%emt 0:00:35]} Qxh5 {[%emt 0:00:25]} 23. Rxh5 {[%emt 0:00:04]} g6 {[%emt 0:00:20]} 24. Rh4 {[%emt 0:03:31]} Rae8 {[%emt 0:04:44]} 25. Kd2 {[%emt 0:05:39]} Re5 {[%emt 0:01:39]} 26. b4 {[%emt 0:05:24]} Rxd5+ {[%emt 0:13:20]} 27. Ke3 {[%emt 0:02:43]} Na4 {[%emt 0:00:20]} 28. Bxa4 {[%emt 0:02:49]} bxa4 {[%emt 0:00:09]} 29. Rxe4 {[%emt 0:00:05]} Kh7 {[%emt 0:00:39]} 30. c4 {[%emt 0:01:17]} Rh5 {[%emt 0:03:46]} 31. Rd1 {[%emt 0:01:11]} Rb8 {[%emt 0:10:50] normal} 1-0

[Event "DVM U20 2019"]
[Site "Braunschweig"]
[Date "2019.12.29"]
[Round "5"]
[White "Doepper, Anna Berenice"]
[Black "Kirschweng, Luca"]
[Result "1-0"]
[ECO "C10"]
[WhiteElo "1855"]
[BlackElo "1718"]
[Annotator "NA"]
[PlyCount "105"]
[EventDate "2019.12.27"]
[EventType "team-tourn"]
[EventRounds "7"]
[EventCountry "GER"]
[SourceTitle "playchess.com"]
[Source "ChessBase"]
[SourceQuality "1"]
[WhiteTeam "SF Essen-Katernberg"]
[BlackTeam "SG Trier"]
[TimeControl "40/5400+30:1800+30"]

1. e4 {[%emt 0:00:00]} e6 {[%emt 0:00:00]} 2. d4 {[%emt 0:00:00]} d5 {[%emt 0:00:00]} 3. Nc3 {[%emt 0:00:00]} dxe4 {[%emt 0:00:00]} 4. Nxe4 {[%emt 0:00:00]} Nd7 {[%emt 0:00:01]} 5. Nf3 {[%emt 0:00:00]} Be7 {[%emt 0:00:07]} 6. Bd3 {[%emt 0:00:15]} Ngf6 {[%emt 0:00:11]} 7. Nxf6+ {[%emt 0:00:09] unterminated} Bxf6 {[%emt 0:00:41]} 8. Qe2 {[%emt 0:00:31] unterminated} O-O {[%emt 0:02:00] unterminated} 9. c3 {[%emt 0:04:02]} (9. h4 $14) 9... Re8 $14 {[%emt 0:00:33]} ({Black should try} 9... e5 $11) 10. Ne5 {[%emt 0:03:00]} c5 {[%emt 0:09:18]} 11. Nxd7 {[%emt 0:01:09]} Bxd7 {[%emt 0:00:36]} 12. dxc5 {[%emt 0:00:17]} Qc7 {[%emt 0:01:10]} 13. Be3 {[%emt 0:01:02]} Bc6 {[%emt 0:02:48]} 14. f3 {[%emt 0:04:26]} e5 {[%emt 0:02:22]} 15. Qc2 {[%emt 0:09:21]} h6 {[%emt 0:06:19]} 16. O-O {[%emt 0:09:55]} Re7 {[%emt 0:07:14]} 17. Bf2 {[%emt 0:07:34]} Rae8 {[%emt 0:01:17]} 18. Rfe1 {[%emt 0:01:27]} a6 {[%emt 0:03:45]} 19. a4 {[%emt 0:06:24]} Rd8 {[%emt 0:11:24]} 20. Rad1 {[%emt 0:07:26]} Red7 {[%emt 0:09:54]} 21. Bf5 {[%emt 0:04:43]} Rxd1 {[%emt 0:01:25]} 22. Rxd1 {[%emt 0:00:05]} Rxd1+ {[%emt 0:00:05]} 23. Qxd1 {[%emt 0:00:06]} g6 {[%emt 0:00:19]} 24. Bc2 {[%emt 0:00:10]} Be7 {[%emt 0:01:03]} 25. b4 {[%emt 0:01:59]} Kg7 {[%emt 0:02:17]} 26. Qd2 {[%emt 0:08:58]} h5 {[%emt 0:10:30]} 27. Be3 {[%emt 0:02:56]} Qc8 {[%emt 0:04:08]} 28. c4 {[%emt 0:05:42]} Be8 {[%emt 0:02:04]} 29. Qd5 {[%emt 0:01:08]} f6 {[%emt 0:01:40]} 30. Be4 {[%emt 0:04:54]} Bc6 {[%emt 0:00:51]} 31. Qd1 {[%emt 0:00:09]} Be8 {[%emt 0:00:22]} 32. Qc2 {[%emt 0:00:40]} Qc7 {[%emt 0:06:26]} 33. Bd5 {[%emt 0:00:24]} Bd7 {[%emt 0:01:40]} 34. Bf2 {[%emt 0:03:00]} Kh7 {[%emt 0:03:08]} 35. Kf1 {[%emt 0:01:21]} Kg7 {[%emt 0:00:23]} 36. Qb3 {[%emt 0:02:27]} Bf8 {[%emt 0:04:29]} 37. Be4 {[%emt 0:02:41]} Be7 {[%emt 0:00:28]} 38. Qc2 {[%emt 0:00:02]} Be8 {[%emt 0:00:13]} 39. Be3 {[%emt 0:00:05]} Qc8 {[%emt 0:01:39]} 40. Qb3 {[%emt 0:06:25]} Qc7 {[%emt 0:02:15]} 41. Bd2 {[%emt 0:32:22]} Qc8 {[%emt 0:32:12]} 42. Qe3 {[%emt 0:01:13]} g5 {[%emt 0:00:00]} 43. Bc2 {[%emt 0:00:00]} Qe6 {[%emt 0:00:00]} 44. Qe4 {[%emt 0:00:00]} Bc6 {[%emt 0:00:00]} 45. Qh7+ {[%emt 0:00:00]} Kf8 {[%emt 0:00:00]} 46. Qh8+ {[%emt 0:00:00]} Qg8 {[%emt 0:00:00]} 47. Qxg8+ {[%emt 0:00:00]} Kxg8 {[%emt 0:00:00]} 48. Be3 {[%emt 0:00:00]} Kf7 {[%emt 0:00:00]} 49. b5 {[%emt 0:00:00]} Be8 {[%emt 0:00:00]} 50. Be4 {[%emt 0:00:00]} axb5 {[%emt 0:00:00]} 51. cxb5 {[%emt 0:00:00]} Ke6 {[%emt 0:00:00]} 52. Bxb7 {[%emt 0:00:00]} Kf7 53. Be4 {normal} 1-0